fUST/lending_fUST_20240902
["ID","MTS","AMOUNT","RATE_DAILY","PERIOD"]
[336880959,1725228655061,-2018.08,0.00025205,2]
[336880960,1725228655074,-2549.09,0.00025205,2]
[336880961,1725228655090,-1477.22,0.00025205,2]
[336880962,1725228655103,-2017.0,0.00025205,2]
[336880963,1725228655116,-1110.58,0.00025205,2]
[336880964,1725228655129,-1525.03,0.00025205,2]
[336880965,1725228655142,-1549.12,0.00025205,2]
[336880966,1725228655156,-500.0,0.00025205,2]
[336880967,1725228655169,-1058.99,0.00025205,2]
[336880968,1725228655183,-527.69,0.00025205,2]
[336880969,1725228655196,-500.0,0.00025205,2]
[336880970,1725228655208,-1613.35,0.00025205,2]
[336880971,1725228655223,-500.0,0.00025205,2]
[336880972,1725228655237,-551.55,0.00025205,2]
[336880973,1725228655253,-3000.0,0.0002521,2]
[336880974,1725228655267,-3000.0,0.0002522,2]
[336880975,1725228655280,-1000.0,0.00025221,2]
[336880976,1725228655291,-3000.0,0.0002523,2]
[336880977,1725228655300,-3000.0,0.0002524,2]
[336880978,1725228655310,-151.0,0.0002525,7]
[336880979,1725228655320,-151.0,0.0002525,7]
[336880980,1725228655329,-3000.0,0.0002525,2]
[336880981,1725228655339,-3000.0,0.0002526,2]
[336880982,1725228655349,-3000.0,0.0002527,2]
[336880983,1725228655359,-3000.0,0.0002528,2]
[336880984,1725228655369,-3000.0,0.0002529,2]
[336880985,1725228655378,-150.112233,0.000253,10]
[336880986,1725228655388,-150.112233,0.000253,5]
[336880987,1725228655398,-3000.0,0.000253,2]
[336880988,1725228655408,-3000.0,0.0002531,2]
[336880989,1725228655418,-150.0,0.00025315,2]
[336880990,1725228655427,-173.225,0.00025315,2]
[336880991,1725228655437,-218.699,0.00025315,2]
[336880992,1725228655447,-3000.0,0.0002532,2]
[336880993,1725228655457,-3000.0,0.0002533,2]
[336880994,1725228655466,-4556.88966201,0.00025336,2]
[336880995,1725228655475,-3000.0,0.0002534,2]
[336880996,1725228655485,-290.189,0.00025342,2]
[336880997,1725228655495,-522.0,0.00025342,2]
[336880998,1725228655730,-153.0,0.00025342,2]
[336880999,1725228655752,-153.0,0.00025342,2]
[336881000,1725228655772,-153.0,0.00025342,2]
[336881001,1725228655781,-3000.0,0.0002535,2]
[336881002,1725228655790,-3000.0,0.0002536,2]
[336881003,1725228655800,-3000.0,0.0002537,2]
[336881004,1725228655809,-1000.0,0.00025374,2]
[336881005,1725228655818,-153.71,0.00025379,7]
[336881006,1725228655827,-154.68,0.00025379,7]
[336881007,1725228655836,-3000.0,0.0002538,2]
[336881008,1725228655845,-228.912194,0.0002538,7]
[336881009,1725228655854,-228.912194,0.0002538,7]
[336881010,1725228655864,-3000.0,0.0002539,2]
[336881011,1725228655873,-150.112233,0.000254,10]
[336881012,1725228655882,-150.112233,0.000254,7]
[336881013,1725228655894,-3000.0,0.000254,2]
[336881014,1725228655903,-3000.0,0.0002541,2]
[336881015,1725228655913,-3000.0,0.0002542,2]
[336881016,1725228655922,-420.0,0.00025428,2]
[336881017,1725228655931,-3000.0,0.0002543,2]
[336881018,1725228655941,-3000.0,0.0002544,2]
[336881019,1725228655950,-3000.0,0.0002545,2]
[336881020,1725228655959,-1000.0,0.00025454,2]
[336881021,1725228655968,-3000.0,0.0002546,2]
[336881022,1725228655978,-3000.0,0.0002547,2]
[336881023,1725228655987,-740.047224,0.0002547,7]
[336881024,1725228655996,-740.047224,0.0002547,7]
[336881025,1725228656013,-408.01088945,0.00025478,2]
[336881026,1725228656022,-2081.74031865,0.00025478,2]
[336881027,1725228656031,-500.15,0.00025479,2]
[336881028,1725228656040,-562.25058744,0.00025479,2]
[336881029,1725228656050,-500.0,0.00025479,2]
[336881030,1725228656059,-500.0,0.00025479,2]
[336881031,1725228656069,-500.0,0.00025479,2]
[336881032,1725228656078,-500.0,0.00025479,2]
[336881033,1725228656090,-500.0,0.00025479,2]
[336881034,1725228656099,-500.0,0.00025479,2]
[336881035,1725228656108,-528.88123642,0.00025479,2]
[336881036,1725228656118,-500.0,0.00025479,2]
[336881037,1725228656127,-500.0,0.00025479,2]
[336881038,1725228656136,-500.0,0.00025479,2]
[336881039,1725228656146,-500.0,0.00025479,2]
[336881040,1725228656155,-500.0,0.00025479,2]
[336881041,1725228656164,-720.13,0.00025479,2]
[336881042,1725228656174,-500.0,0.00025479,2]
[336881043,1725228656184,-500.0,0.00025479,2]
[336881044,1725228656194,-500.0,0.00025479,2]
[336881045,1725228656203,-151.0,0.00025479,7]
[336881046,1725228656212,-420.58768688,0.00025479,2]
[336881047,1725228656221,-151.0,0.00025479,7]
[336881048,1725228656231,-500.0,0.00025479,2]
[336881049,1725228656241,-500.0,0.00025479,2]
[336881050,1725228656250,-500.0,0.00025479,2]
[336881051,1725228656260,-500.0,0.00025479,2]
[336881052,1725228656269,-500.0,0.00025479,2]
[336881053,1725228656278,-500.0,0.00025479,2]
[336881054,1725228656287,-500.0,0.00025479,2]
[336881055,1725228656297,-580.81,0.00025479,2]
[336881056,1725228656307,-500.0,0.00025479,2]
[336881057,1725228656316,-500.0,0.00025479,2]
[336881058,1725228656325,-500.0,0.00025479,2]
[336881059,1725228656335,-503.48,0.00025479,2]
[336881060,1725228656345,-500.0,0.00025479,2]
[336881061,1725228656355,-575.82,0.00025479,2]
[336881062,1725228656364,-500.0,0.00025479,2]
[336881063,1725228656375,-500.0,0.00025479,2]
[336881064,1725228656384,-500.0,0.00025479,2]
[336881065,1725228656394,-500.0,0.00025479,2]
[336881066,1725228656404,-500.0,0.00025479,2]
[336881067,1725228656413,-500.0,0.00025479,2]
[336881068,1725228656423,-587.44,0.00025479,2]
[336881069,1725228656435,-715.3,0.00025479,2]
[336881070,1725228656446,-500.0,0.00025479,2]
[336881071,1725228656456,-647.75,0.00025479,2]
[336881072,1725228656467,-500.0,0.00025479,2]
[336881073,1725228656477,-630.32934669,0.00025479,2]
[336881074,1725228656488,-500.0,0.00025479,2]
[336881075,1725228656501,-884.79,0.00025479,2]
[336881076,1725228656513,-500.0,0.00025479,2]
[336881077,1725228656523,-591.41,0.00025479,2]
[336881078,1725228656535,-500.0,0.00025479,2]
[336881079,1725228656545,-500.0,0.00025479,2]
[336881080,1725228656556,-500.0,0.00025479,2]
[336881081,1725228656565,-500.0,0.00025479,2]
[336881082,1725228656575,-500.0,0.00025479,2]
[336881083,1725228656586,-500.0,0.00025479,2]
[336881084,1725228656597,-551.46,0.00025479,2]
[336881085,1725228656608,-794.6,0.00025479,2]
[336881086,1725228656617,-500.0,0.00025479,2]
[336881087,1725228656626,-500.0,0.00025479,2]
[336881088,1725228656635,-500.0,0.00025479,2]
[336881089,1725228656644,-500.0,0.00025479,2]
[336881090,1725228656654,-500.0,0.00025479,2]
[336881091,1725228656663,-500.0,0.00025479,2]
[336881092,1725228656674,-500.0,0.00025479,2]
[336881093,1725228656684,-500.0,0.00025479,2]
[336881094,1725228656695,-500.0,0.00025479,2]
[336881095,1725228656705,-500.0,0.00025479,2]
[336881096,1725228656714,-500.0,0.00025479,2]
[336881097,1725228656723,-500.0,0.00025479,2]
[336881098,1725228656732,-500.0,0.00025479,2]
[336881099,1725228656742,-500.0,0.00025479,2]
[336881100,1725228656751,-500.0,0.00025479,2]
[336881101,1725228656760,-500.0,0.00025479,2]
[336881102,1725228656770,-500.0,0.00025479,2]
[336881103,1725228656780,-507.05321203,0.00025479,2]
[336881104,1725228656789,-500.0,0.00025479,2]
[336881105,1725228656799,-4033.99,0.00025479,2]
[336881106,1725228656808,-500.0,0.00025479,2]
[336881107,1725228656817,-500.0,0.00025479,2]
[336881108,1725228656826,-500.0,0.00025479,2]
[336881109,1725228656836,-394.65511845,0.00025479,2]
[336881110,1725228656845,-249.29684256,0.00025479,2]
[336881111,1725228656856,-1438.01,0.00025479,2]
[336881112,1725228656866,-500.0,0.00025479,2]
[336881113,1725228656876,-500.0,0.00025479,2]
[336881114,1725228656885,-500.0,0.00025479,2]
[336881115,1725228656894,-500.0,0.00025479,2]
[336881116,1725228656903,-500.0,0.00025479,2]
[336881117,1725228656912,-593.34,0.00025479,2]
[336881118,1725228656922,-513.91093587,0.00025479,2]
[336881119,1725228656932,-500.0,0.00025479,2]
[336881120,1725228656942,-686.42,0.00025479,2]
[336881121,1725228656953,-500.0,0.00025479,2]
[336881122,1725228656965,-854.25,0.00025479,2]
[336881123,1725228656974,-500.0,0.00025479,2]
[336881124,1725228656986,-500.0,0.00025479,2]
[336881125,1725228656997,-637.18,0.00025479,2]
[336881126,1725228657010,-500.0,0.00025479,2]
[336881127,1725228657020,-500.0,0.00025479,2]
[336881128,1725228657031,-500.0,0.00025479,2]
[336881129,1725228657041,-500.0,0.00025479,2]
[336881130,1725228657052,-500.0,0.00025479,2]
[336881131,1725228657064,-584.11,0.00025479,2]
[336881132,1725228657074,-412.68281981,0.00025479,2]
[336881133,1725228657086,-500.0,0.00025479,2]
[336881134,1725228657097,-500.0,0.00025479,2]
[336881135,1725228657108,-500.0,0.00025479,2]
[336881136,1725228657118,-500.0,0.00025479,2]
[336881137,1725228657129,-591.14,0.00025479,2]
[336881138,1725228657139,-500.0,0.00025479,2]
[336881139,1725228657148,-500.0,0.00025479,2]
[336881140,1725228657157,-500.0,0.00025479,2]
[336881141,1725228657167,-500.0,0.00025479,2]
[336881142,1725228657177,-842.5,0.00025479,2]
[336881143,1725228657186,-458.16028587,0.00025479,2]
[336881144,1725228657195,-500.0,0.00025479,2]
[336881145,1725228657204,-500.0,0.00025479,2]
[336881146,1725228657214,-500.0,0.00025479,2]
[336881147,1725228657224,-666.3,0.00025479,2]
[336881148,1725228657235,-500.0,0.00025479,2]
[336881149,1725228657246,-500.0,0.00025479,2]
[336881150,1725228657258,-297.12393522,0.00025479,2]
[336881151,1725228657268,-1193.05,0.00025479,2]
[336881152,1725228657280,-500.0,0.00025479,2]
[336881153,1725228657290,-500.0,0.00025479,2]
[336881154,1725228657300,-500.0,0.00025479,2]
[336881155,1725228657310,-933.41,0.00025479,2]
[336881156,1725228657320,-762.13,0.00025479,2]
[336881157,1725228657330,-500.0,0.00025479,2]
[336881158,1725228657340,-500.0,0.00025479,2]
[336881159,1725228657351,-830.89,0.00025479,2]
[336881160,1725228657362,-2067.07,0.00025479,2]
[336881161,1725228657371,-500.0,0.00025479,2]
[336881162,1725228657381,-717.72,0.00025479,2]
[336881163,1725228657390,-503.44362046,0.00025479,2]
[336881164,1725228657400,-500.0,0.00025479,2]
[336881165,1725228657410,-500.0,0.00025479,2]
[336881166,1725228657422,-500.0,0.00025479,2]
[336881167,1725228657433,-341.20168864,0.00025479,2]
[336881168,1725228657460,-158.79831136,0.00025479,2]
[336881169,1725228657470,-200.0,0.00025479,2]
[336881170,1725228657482,-500.0,0.00025479,2]
[336881171,1725228657492,-500.0,0.00025479,2]
[336881172,1725228657502,-500.0,0.00025479,2]
[336881173,1725228657513,-1503.11,0.00025479,2]
[336881174,1725228657523,-500.0,0.00025479,2]
[336881175,1725228657532,-500.0,0.00025479,2]
[336881176,1725228657541,-500.0,0.00025479,2]
[336881177,1725228657551,-500.0,0.00025479,2]
[336881178,1725228657560,-500.0,0.00025479,2]
[336881179,1725228657570,-500.0,0.00025479,2]
[336881180,1725228657582,-500.0,0.00025479,2]
[336881181,1725228657591,-500.0,0.00025479,2]
[336881182,1725228657600,-2373.39,0.00025479,2]
[336881183,1725228657608,-500.0,0.00025479,2]
[336881184,1725228657619,-500.0,0.00025479,2]
[336881185,1725228657628,-504.98489087,0.00025479,2]
[336881186,1725228657637,-500.0,0.00025479,2]
[336881187,1725228657647,-904.07,0.00025479,2]
[336881188,1725228657656,-500.0,0.00025479,2]
[336881189,1725228657665,-500.0,0.00025479,2]
[336881190,1725228657674,-500.0,0.00025479,2]
[336881191,1725228657683,-500.0,0.00025479,2]
[336881192,1725228657693,-740.047224,0.00025479,7]
[336881193,1725228657703,-500.0,0.00025479,2]
[336881194,1725228657712,-1350.51,0.00025479,2]
[336881195,1725228657721,-740.047224,0.00025479,7]
[336881196,1725228657730,-500.0,0.00025479,2]
[336881197,1725228657740,-500.0,0.00025479,2]
[336881198,1725228657749,-500.0,0.00025479,2]
[336881199,1725228657758,-500.0,0.00025479,2]
[336881200,1725228657767,-710.76,0.00025479,2]
[336881201,1725228657776,-533.99,0.00025479,2]
[336881202,1725228657785,-507.68,0.00025479,2]
[336881203,1725228657795,-500.0,0.00025479,2]
[336881204,1725228657804,-652.54,0.00025479,2]
[336881205,1725228657813,-500.0,0.00025479,2]
[336881206,1725228657822,-1702.5,0.00025479,2]
[336881207,1725228657831,-941.73,0.00025479,2]
[336881208,1725228657840,-228.912194,0.00025479,7]
[336881209,1725228657849,-818.68,0.00025479,2]
[336881210,1725228657858,-228.912194,0.00025479,7]
[336881211,1725228657867,-500.0,0.00025479,2]
[336881212,1725228657876,-500.0,0.00025479,2]
[336881213,1725228657886,-962.75,0.00025479,2]
[336881214,1725228657895,-593.54,0.00025479,2]
[336881215,1725228657904,-508.30466131,0.00025479,2]
[336881216,1725228657914,-500.0,0.00025479,2]
[336881217,1725228657923,-500.0,0.00025479,2]
[336881218,1725228657933,-1498.65,0.00025479,2]
[336881219,1725228657942,-500.0,0.00025479,2]
[336881220,1725228657950,-500.0,0.00025479,2]
[336881221,1725228657960,-741.94,0.00025479,2]
[336881222,1725228657969,-354.09663816,0.00025479,2]
[336881223,1725228657978,-500.0,0.00025479,2]
[336881224,1725228657987,-500.0,0.00025479,2]
[336881225,1725228657996,-500.0,0.00025479,2]
[336881226,1725228658009,-500.0,0.00025479,2]
[336881227,1725228658018,-1569.73,0.00025479,2]
[336881228,1725228658028,-723.72,0.00025479,2]
[336881229,1725228658037,-500.0,0.00025479,2]
[336881230,1725228658046,-500.0,0.00025479,2]
[336881231,1725228658057,-2143.24,0.00025479,2]
[336881232,1725228658066,-500.0,0.00025479,2]
[336881233,1725228658075,-837.11,0.00025479,2]
[336881234,1725228658086,-525.9372745,0.00025479,2]
[336881235,1725228658096,-500.0,0.00025479,2]
[336881236,1725228658105,-500.0,0.00025479,2]
[336881237,1725228658114,-500.0,0.00025479,2]
[336881238,1725228658123,-500.0,0.00025479,2]
[336881239,1725228658132,-1503.12,0.00025479,2]
[336881240,1725228658141,-1857.48,0.00025479,2]
[336881241,1725228658150,-500.0,0.00025479,2]
[336881242,1725228658159,-584.59,0.00025479,2]
[336881243,1725228658169,-500.0,0.00025479,2]
[336881244,1725228658178,-500.0,0.00025479,2]
[336881245,1725228658188,-615.98,0.00025479,2]
[336881246,1725228658197,-1982.39,0.00025479,2]
[336881247,1725228658207,-500.0,0.00025479,2]
[336881248,1725228658216,-702.36,0.00025479,2]
[336881249,1725228658225,-500.0,0.00025479,2]
[336881250,1725228658235,-1088.15,0.00025479,2]
[336881251,1725228658244,-950.74,0.00025479,2]
[336881252,1725228658254,-500.0,0.00025479,2]
[336881253,1725228658264,-1848.07,0.00025479,2]
[336881254,1725228658273,-3203.91,0.00025479,2]
[336881255,1725228658283,-500.0,0.00025479,2]
[336881256,1725228658292,-2992.18,0.00025479,2]
[336881257,1725228658301,-661.43,0.00025479,2]
[336881258,1725228658310,-500.0,0.00025479,2]
[336881259,1725228658321,-500.0,0.00025479,2]
[336881260,1725228658331,-500.0,0.00025479,2]
[336881261,1725228658341,-500.0,0.00025479,2]
[336881262,1725228658350,-500.0,0.00025479,2]
[336881263,1725228658359,-500.0,0.00025479,2]
[336881264,1725228658369,-500.0,0.00025479,2]
[336881265,1725228658378,-500.0,0.00025479,2]
[336881266,1725228658387,-500.0,0.00025479,2]
[336881267,1725228658396,-500.0,0.00025479,2]
[336881268,1725228658406,-500.0,0.00025479,2]
[336881269,1725228658416,-500.0,0.00025479,2]
[336881270,1725228658425,-14779.04,0.00025479,2]
[336881271,1725228658435,-696.18,0.00025479,2]
[336881272,1725228658444,-1473.93,0.00025479,2]
[336881273,1725228658453,-1108.79,0.00025479,2]
[336881274,1725228658463,-357.55163027,0.00025479,2]
[336881275,1725228658473,-2610.03,0.00025479,2]
[336881276,1725228658482,-500.0,0.00025479,2]
[336881277,1725228658491,-1874.99,0.00025479,2]
[336881278,1725228658500,-500.0,0.00025479,2]
[336881279,1725228658509,-500.0,0.00025479,2]
[336881280,1725228658518,-500.0,0.00025479,2]
[336881281,1725228658528,-500.0,0.00025479,2]
[336881282,1725228658537,-288.07190171,0.00025479,2]
[336881283,1725228658546,-500.0,0.00025479,2]
[336881284,1725228658555,-578.56,0.00025479,2]
[336881285,1725228658564,-1701.39,0.00025479,2]
[336881286,1725228658573,-623.51,0.00025479,2]
[336881287,1725228658592,-2460.92,0.00025479,2]
[336881288,1725228658603,-500.0,0.00025479,2]
[336881289,1725228658612,-87.98295192,0.00025479,2]
[336881290,1725228659474,-500.0,0.00024657,2]
[336881291,1725228659484,-500.0,0.00024657,2]
[336881292,1725228659494,-2956.80704808,0.00025479,2]
[336881293,1725228659504,-500.0,0.00025479,2]
[336881294,1725228659513,-773.13,0.00025479,2]
[336881295,1725228659523,-500.0,0.00025479,2]
[336881296,1725228659532,-500.0,0.00025479,2]
[336881297,1725228659542,-500.0,0.00025479,2]
[336881298,1725228659552,-865.51,0.00025479,2]
[336881299,1725228659563,-1350.26,0.00025479,2]
[336881300,1725228659572,-512.17694907,0.00025479,2]
[336881301,1725228659582,-500.0,0.00025479,2]
[336881302,1725228659591,-539.4,0.00025479,2]
[336881303,1725228659601,-1288.54,0.00025479,2]
[336881304,1725228659611,-1589.94,0.00025479,2]
[336881305,1725228659620,-654.89,0.00025479,2]
[336881306,1725228659630,-500.0,0.00025479,2]
[336881307,1725228659640,-1347.97,0.00025479,2]
[336881308,1725228659650,-500.0,0.00025479,2]
[336881309,1725228659661,-1793.47,0.00025479,2]
[336881310,1725228659670,-731.51,0.00025479,2]
[336881311,1725228659680,-594.45,0.00025479,2]
[336881312,1725228659690,-500.0,0.00025479,2]
[336881313,1725228659699,-500.0,0.00025479,2]
[336881314,1725228659709,-500.0,0.00025479,2]
[336881315,1725228659718,-500.0,0.00025479,2]
[336881316,1725228659733,-1937.29,0.00025479,2]
[336881317,1725228659743,-1695.94,0.00025479,2]
[336881318,1725228659752,-500.0,0.00025479,2]
[336881319,1725228659762,-1878.49,0.00025479,2]
[336881320,1725228659771,-500.0,0.00025479,2]
[336881321,1725228659780,-500.0,0.00025479,2]
[336881322,1725228659790,-763.22,0.00025479,2]
[336881323,1725228659799,-302.79753166,0.00025479,2]
[336881324,1725228886467,160.96013,0.00014247,2]
[336881326,1725229347887,150.0,0.00014,2]
[336881327,1725229408900,158.79746,0.00014247,2]
[336881330,1725229627213,-162.331421,0.00023071,2]
[336881331,1725229627233,-300.0,0.00023086,2]
[336881332,1725229627255,-1.49248358,0.00023087,2]
[336881333,1725229713444,10069.68174398,0.0002,2]
[336881334,1725229715161,210.12854126,0.00015,7]
[336881335,1725229719122,4297.77922405,0.0002,2]
[336881336,1725229719987,20806.3048956,0.0002,2]
[336881337,1725229721921,170.16531864,0.0002,2]
[336881361,1725229832089,-300.0,0.00023086,2]
[336881362,1725229832099,-5485.0,0.00023087,2]
[336881363,1725229832111,-323.47788715,0.00023087,2]
[336881439,1725229838349,-19090.02962927,0.00023087,2]
[336881441,1725229838360,-418.0027915,0.00023263,2]
[336881443,1725229838369,-663.7985829,0.00023343,2]
[336881445,1725229838379,-589.367299,0.00023836,2]
[336881447,1725229838389,-319.35762096,0.00024,2]
[336881449,1725229838398,-2000.0,0.00024557,2]
[336881451,1725229838407,-182.5559643,0.00024557,2]
[336881453,1725229838418,-90.39094825,0.000246,2]
[336881456,1725229838429,-62.60905175,0.000246,2]
[336881457,1725229838438,-153.0,0.000246,2]
[336881460,1725229838448,-9633.4497678,0.00024647,3]
[336881462,1725229838458,-201.24,0.00024647,3]
[336881464,1725229838467,-603.77,0.00024647,3]
[336881465,1725229838477,-317.62533029,0.00024656,2]
[336881466,1725229838486,-500.0,0.00024656,2]
[336881467,1725229838497,-244.70704599,0.00024656,2]
[336881468,1725229838506,-603.62949692,0.00024656,2]
[336881469,1725229838517,-209.29703361,0.00024656,2]
[336881470,1725229838526,-234.71424898,0.00024656,2]
[336881471,1725229838535,-162.61650175,0.00024656,2]
[336881472,1725229838546,-500.0,0.00024656,2]
[336881473,1725229838557,-500.0,0.00024656,2]
[336881474,1725229838570,-500.0,0.00024656,2]
[336881475,1725229838579,-395.01515959,0.00024656,2]
[336881476,1725229838589,-500.0,0.00024656,2]
[336881477,1725229838599,-589.24013452,0.00024656,2]
[336881478,1725229838608,-8140.50456468,0.00024657,11]
[336881479,1725229838618,-500.0,0.00024657,2]
[336881480,1725229838627,-510.82703953,0.00024657,2]
[336881481,1725229838636,-500.0,0.00024657,2]
[336881482,1725229838646,-500.0,0.00024657,2]
[336881483,1725229838658,-500.0,0.00024657,2]
[336881484,1725229838667,-500.0,0.00024657,2]
[336881485,1725229838677,-500.0,0.00024657,2]
[336881486,1725229838689,-500.0,0.00024657,2]
[336881487,1725229838698,-696.59,0.00024657,2]
[336881488,1725229838708,-500.0,0.00024657,2]
[336881489,1725229838718,-500.0,0.00024657,2]
[336881490,1725229838728,-528.2546644,0.00024657,2]
[336881491,1725229838739,-500.0,0.00024657,2]
[336881492,1725229838748,-500.0,0.00024657,2]
[336881493,1725229838757,-500.0,0.00024657,2]
[336881494,1725229838767,-500.0,0.00024657,2]
[336881495,1725229838777,-500.0,0.00024657,2]
[336881496,1725229838786,-500.0,0.00024657,2]
[336881497,1725229838796,-500.0,0.00024657,2]
[336881498,1725229838807,-501.01623993,0.00024657,2]
[336881499,1725229838820,-500.0,0.00024657,2]
[336881500,1725229838830,-502.24439281,0.00024657,2]
[336881501,1725229838840,-500.0,0.00024657,2]
[336881502,1725229838849,-500.0,0.00024657,2]
[336881503,1725229838859,-495.44253772,0.00024657,2]
[336881504,1725229838870,-500.0,0.00024657,2]
[336881505,1725229838880,-524.17276754,0.00024657,2]
[336881506,1725229838890,-580.39382741,0.00024657,2]
[336881507,1725229838901,-500.0,0.00024657,2]
[336881508,1725229838910,-500.0,0.00024657,2]
[336881509,1725229838920,-500.0,0.00024657,2]
[336881510,1725229838929,-500.0,0.00024657,2]
[336881511,1725229838939,-500.0,0.00024657,2]
[336881512,1725229838948,-500.0,0.00024657,2]
[336881513,1725229838958,-500.0,0.00024657,2]
[336881514,1725229838968,-500.0,0.00024657,2]
[336881515,1725229838978,-500.0,0.00024657,2]
[336881516,1725229838987,-500.0,0.00024657,2]
[336881517,1725229838997,-500.0,0.00024657,2]
[336881518,1725229839007,-500.0,0.00024657,2]
[336881519,1725229839017,-500.0,0.00024657,2]
[336881520,1725229839026,-500.0,0.00024657,2]
[336881521,1725229839035,-500.0,0.00024657,2]
[336881522,1725229839045,-500.0,0.00024657,2]
[336881523,1725229839055,-506.44536455,0.00024657,2]
[336881524,1725229839067,-500.0,0.00024657,2]
[336881525,1725229839076,-500.0,0.00024657,2]
[336881526,1725229839086,-500.0,0.00024657,2]
[336881527,1725229839095,-500.0,0.00024657,2]
[336881528,1725229839105,-500.0,0.00024657,2]
[336881529,1725229839115,-249.29684256,0.00024657,2]
[336881530,1725229839124,-500.0,0.00024657,2]
[336881531,1725229839134,-500.0,0.00024657,2]
[336881532,1725229839144,-500.0,0.00024657,2]
[336881533,1725229839154,-500.0,0.00024657,2]
[336881534,1725229839163,-535.44,0.00024657,2]
[336881535,1725229839173,-504.69029907,0.00024657,2]
[336881536,1725229839182,-500.0,0.00024657,2]
[336881537,1725229839194,-500.0,0.00024657,2]
[336881538,1725229839203,-500.0,0.00024657,2]
[336881539,1725229839213,-500.0,0.00024657,2]
[336881540,1725229839223,-500.0,0.00024657,2]
[336881541,1725229839233,-500.0,0.00024657,2]
[336881542,1725229839242,-837.46,0.00024657,2]
[336881543,1725229839251,-500.0,0.00024657,2]
[336881544,1725229839261,-500.0,0.00024657,2]
[336881545,1725229839271,-500.0,0.00024657,2]
[336881546,1725229839280,-804.59,0.00024657,2]
[336881547,1725229839290,-500.0,0.00024657,2]
[336881548,1725229839299,-500.0,0.00024657,2]
[336881549,1725229839309,-500.0,0.00024657,2]
[336881550,1725229839320,-500.0,0.00024657,2]
[336881551,1725229839329,-500.0,0.00024657,2]
[336881552,1725229839339,-500.0,0.00024657,2]
[336881553,1725229839348,-500.0,0.00024657,2]
[336881554,1725229839358,-500.0,0.00024657,2]
[336881555,1725229839367,-500.0,0.00024657,2]
[336881556,1725229839376,-500.0,0.00024657,2]
[336881557,1725229839386,-636.08,0.00024657,2]
[336881558,1725229839395,-280.06400868,0.00024657,2]
[336881559,1725229839405,-500.0,0.00024657,2]
[336881560,1725229839415,-729.17,0.00024657,2]
[336881561,1725229839425,-500.0,0.00024657,2]
[336881562,1725229839435,-500.0,0.00024657,2]
[336881563,1725229839444,-500.0,0.00024657,2]
[336881564,1725229839454,-500.0,0.00024657,2]
[336881565,1725229839464,-500.0,0.00024657,2]
[336881566,1725229839474,-500.0,0.00024657,2]
[336881567,1725229839484,-500.0,0.00024657,2]
[336881568,1725229839494,-500.0,0.00024657,2]
[336881569,1725229839503,-500.0,0.00024657,2]
[336881570,1725229839513,-500.0,0.00024657,2]
[336881571,1725229839523,-500.0,0.00024657,2]
[336881572,1725229839533,-970.74,0.00024657,2]